bitfinex-derivatives/quotes_BTCF0:USTF0_20241029
["timestamp","ask_amount","ask_price","bid_price","bid_amount"]
[1730242724524,1.86152,72791.0,72790.0,0.068707]
[1730242724819,1.8608,72791.0,72790.0,0.068707]
[1730242725515,1.929506,72791.0,72790.0,0.068707]
[1730242726411,1.97136974,72791.0,72790.0,0.068707]
[1730242726615,1.9713764,72791.0,72790.0,0.068707]
[1730242730015,0.06871,72788.0,72787.0,0.068709]
[1730242730624,0.068713,72784.0,72783.0,0.08174252]
[1730242730819,0.20074365,72784.0,72783.0,0.068713]
[1730242731020,0.068715,72782.0,72781.0,0.3608]
[1730242731218,0.13203065,72784.0,72776.0,0.0625]
[1730242731422,0.20074365,72784.0,72783.0,0.068714]
[1730242731723,0.13203065,72776.0,72775.0,0.0020609]
[1730242731922,0.13203065,72776.0,72775.0,0.0707829]
[1730242732122,0.429519,72778.0,72777.0,0.06872]
[1730242732527,0.068719,72778.0,72777.0,0.06872]
[1730242732727,0.13203065,72785.0,72781.0,0.068715]
[1730242732926,0.068715,72782.0,72781.0,0.068715]
[1730242734019,0.068717,72780.0,72779.0,0.068718]
[1730242734219,0.068715,72783.0,72781.0,0.068716]
[1730242734419,0.3608,72785.0,72781.0,0.068716]
[1730242734420,0.13203065,72782.0,72781.0,0.068716]
[1730242734822,0.20074565,72782.0,72781.0,0.068716]
[1730242735021,0.24207964,72782.0,72781.0,0.068716]
[1730242735419,0.068717,72780.0,72773.0,0.01269546]
[1730242735627,0.04133399,72779.0,72778.0,0.068719]
[1730242735936,0.04130771,72779.0,72772.0,0.429524]
[1730242736124,0.04130771,72778.0,72777.0,0.06872]
[1730242737833,0.24205736,72778.0,72777.0,0.06872]
[1730242740633,0.20074965,72778.0,72777.0,0.06872]
[1730242741029,0.068723,72775.0,72774.0,0.068722]
[1730242744932,0.13203065,72778.0,72777.0,0.06872]
[1730242745230,0.20074965,72778.0,72777.0,0.06872]
[1730242748741,0.24194675,72778.0,72777.0,0.06872]
[1730242753933,0.24170561,72778.0,72777.0,0.06872]
[1730242754944,0.17298661,72778.0,72773.0,0.0318]
[1730242755152,0.068723,72775.0,72774.0,0.068722]
[1730242755441,0.10967896,72775.0,72774.0,0.068722]
[1730242755635,0.04095596,72775.0,72773.0,0.0318]
[1730242755837,0.068723,72774.0,72773.0,0.100523]
[1730242756030,0.20075365,72774.0,72773.0,0.100523]
[1730242757032,0.20075365,72774.0,72773.0,0.0318]
[1730242757333,0.56155365,72774.0,72773.0,0.0318]
[1730242758935,0.56155365,72774.0,72773.0,0.100523]
[1730242759430,0.56155365,72774.0,72773.0,0.0318]
[1730242760332,0.60157202,72774.0,72773.0,0.0318]
[1730242761641,0.068723,72773.0,72772.0,0.01268636]
[1730242761839,0.068723,72773.0,72739.0,0.0074]
[1730242761840,0.068735,72761.0,72745.0,0.0064]
[1730242762038,0.429537,72759.0,72750.0,0.03]
[1730242762341,1.96937216,72759.0,72758.0,0.01517091]
[1730242762641,1.96937216,72759.0,72758.0,0.00206147]
[1730242765236,0.068741,72755.0,72753.0,0.068742]
[1730242765437,0.13203065,72754.0,72753.0,0.068742]
[1730242765633,0.20077165,72754.0,72753.0,0.068742]
[1730242766037,0.41236,72753.0,72738.0,0.00206188]
[1730242766235,0.6936173,72739.0,72738.0,0.00206188]
[1730242767045,0.56158665,72739.0,72738.0,0.00206188]
[1730242767943,0.429556,72739.0,72738.0,0.00206188]
[1730242768143,0.56158665,72739.0,72738.0,0.01259793]
[1730242768448,0.068758,72736.0,72735.0,0.0303]
[1730242770049,0.20078865,72736.0,72735.0,0.0303]
[1730242771049,0.20078865,72736.0,72735.0,0.01295048]
[1730242771251,0.20078865,72736.0,72723.0,0.3608]
[1730242771551,0.13203065,72724.0,72723.0,0.44243361]
[1730242771754,0.13203065,72724.0,72720.0,0.0618]
[1730242771755,0.068771,72723.0,72716.0,0.00096]
[1730242771948,0.2640613,72724.0,72712.0,0.0618]
[1730242771949,0.06878,72713.0,72712.0,0.0618]
[1730242772147,0.3328413,72713.0,72712.0,0.0618]
[1730242772348,0.20081065,72713.0,72712.0,0.0618]
[1730242774729,0.20081065,72713.0,72712.0,0.0311]
[1730242775547,0.3328413,72713.0,72712.0,0.0311]
[1730242775755,0.20081065,72713.0,72712.0,0.0311]
[1730242776150,0.3608,72722.0,72712.0,0.0311]
[1730242776346,0.00206317,72732.0,72730.0,0.068764]
[1730242776654,0.00206317,72732.0,72721.0,0.20080365]
[1730242776655,0.068768,72726.0,72714.0,0.068779]
[1730242776855,0.13203065,72718.0,72717.0,0.068776]
[1730242777053,0.08213065,72718.0,72717.0,0.068776]
[1730242777356,0.068768,72726.0,72725.0,0.068769]
[1730242777940,0.13203065,72730.0,72725.0,0.41252]
[1730242778145,0.3608,72731.0,72730.0,0.068764]
[1730242778444,0.49283065,72731.0,72730.0,0.068764]
[1730242778646,0.13203065,72731.0,72730.0,0.068764]
[1730242779647,0.20079365,72731.0,72730.0,0.068764]
[1730242780042,0.068771,72723.0,72709.0,0.3608]
[1730242780243,0.20081365,72710.0,72709.0,0.3608]
[1730242781157,0.068794,72698.0,72697.0,0.00206297]
[1730242781453,0.92242465,72698.0,72697.0,0.00206297]
[1730242782744,0.13203065,72698.0,72697.0,0.00206297]
[1730242783052,0.13203065,72698.0,72697.0,0.07085797]
[1730242783357,0.3608,72700.0,72697.0,0.00206297]
[1730242783554,0.3608,72700.0,72699.0,0.068793]
[1730242785754,0.429592,72700.0,72697.0,0.07085797]
[1730242786053,0.13203065,72698.0,72697.0,0.07085797]
[1730242788354,0.20082465,72698.0,72697.0,0.07085797]
[1730242788752,0.20082465,72698.0,72697.0,0.00206297]
[1730242789757,0.20082465,72698.0,72697.0,0.07085797]
[1730242790262,0.13203065,72698.0,72697.0,0.07085797]
[1730242791159,0.13203065,72698.0,72697.0,0.068795]
[1730242791557,0.13203065,72698.0,72695.0,0.0325]
[1730242791760,0.068796,72697.0,72695.0,0.101297]
[1730242793465,0.068796,72697.0,72695.0,0.0325]
[1730242793666,0.068796,72697.0,72696.0,0.068796]
[1730242793960,0.13203065,72698.0,72697.0,0.068795]
[1730242794265,0.20082465,72698.0,72697.0,0.068795]
[1730242795169,0.13203065,72698.0,72694.0,0.0316]
[1730242795370,0.13203065,72698.0,72697.0,0.068795]
[1730242795662,0.20082465,72698.0,72697.0,0.068795]
[1730242795863,0.08169898,72717.0,72697.0,0.068795]
[1730242795864,0.3608,72716.0,72711.0,0.068781]
[1730242796068,0.3608,72716.0,72712.0,0.0302]
[1730242796268,0.3608,72716.0,72715.0,0.068778]
[1730242796561,0.13203065,72717.0,72715.0,0.068778]
[1730242796767,0.13203065,72722.0,72713.0,0.4226]
[1730242796976,0.13203065,72722.0,72721.0,0.068773]
[1730242797266,0.13203065,72722.0,72713.0,0.4226]
[1730242797267,0.06877,72724.0,72723.0,0.068771]
[1730242797457,0.20080065,72724.0,72723.0,0.068771]
[1730242797858,0.068773,72721.0,72713.0,0.4226]
[1730242798115,0.13203065,72718.0,72713.0,0.49138]
[1730242798267,0.13203065,72718.0,72717.0,0.068776]
[1730242799271,0.13392017,72718.0,72717.0,0.068776]
[1730242800767,0.00188952,72718.0,72717.0,0.068776]
[1730242802863,0.13392017,72718.0,72717.0,0.068776]
[1730242803670,0.00188952,72718.0,72717.0,0.068776]
[1730242805466,0.00188952,72718.0,72717.0,0.481336]
[1730242805669,0.068765,72730.0,72729.0,0.068765]
[1730242806071,1.568765,72730.0,72729.0,0.068765]
[1730242806865,1.5,72730.0,72729.0,0.068765]
[1730242808465,1.5,72730.0,72729.0,0.429565]
[1730242808668,0.13203065,72736.0,72735.0,0.068759]
[1730242809073,1.63203065,72736.0,72735.0,0.068759]
[1730242810070,1.5,72736.0,72735.0,0.068759]
[1730242811570,1.63203065,72736.0,72735.0,0.068759]
[1730242811972,1.63203065,72736.0,72730.0,0.0653]
[1730242812282,0.13203065,72733.0,72732.0,0.068762]
[1730242813671,0.20079265,72733.0,72732.0,0.068762]
[1730242814070,0.068762,72733.0,72732.0,0.068762]
[1730242814472,1.569479,72736.0,72735.0,0.068759]
[1730242814671,1.5,72736.0,72735.0,0.068759]
[1730242815766,0.0316,72755.0,72735.0,0.068759]
[1730242815767,0.0096,72757.0,72748.0,0.068747]
[1730242816079,0.068731,72766.0,72765.0,0.068728]
[1730242816290,0.3608,72771.0,72769.0,0.068726]
[1730242816291,0.068727,72770.0,72769.0,0.068726]
[1730242816773,0.068731,72766.0,72765.0,0.06873]
[1730242817173,1.5008,72770.0,72769.0,0.068727]
[1730242817384,1.5,72770.0,72769.0,0.20075765]
[1730242817876,1.5,72770.0,72769.0,0.068727]
[1730242818373,1.568726,72770.0,72769.0,0.068727]
[1730242818679,1.568726,72770.0,72765.0,0.06873]
[1730242818680,0.068731,72766.0,72765.0,0.06873]
[1730242818928,0.13203065,72766.0,72757.0,0.10412]
[1730242819070,0.13203065,72762.0,72761.0,0.068734]
[1730242819578,0.068734,72763.0,72757.0,0.10412]
[1730242819781,0.068734,72763.0,72762.0,0.068734]
[1730242820573,0.068734,72763.0,72754.0,0.37499948]
[1730242820574,0.49283065,72765.0,72756.0,0.13203065]
[1730242820774,0.06873,72766.0,72765.0,0.068731]
[1730242820974,1.86152,72770.0,72769.0,0.068727]
[1730242821277,1.929526,72770.0,72769.0,0.068727]
[1730242823181,2.06155665,72770.0,72769.0,0.068727]
[1730242824188,1.99283065,72770.0,72769.0,0.068727]
[1730242824485,2.06155665,72770.0,72769.0,0.068727]
[1730242824684,1.8608,72770.0,72769.0,0.068727]
[1730242826295,1.8608,72770.0,72766.0,0.0318]
[1730242826296,1.96874491,72770.0,72768.0,0.068728]
[1730242826504,0.068729,72767.0,72765.0,0.06873]
[1730242826883,0.13203065,72769.0,72765.0,0.06873]
[1730242827094,0.068728,72768.0,72766.0,0.06873]
[1730242827395,0.068728,72768.0,72767.0,0.068729]
[1730242828076,0.10781075,72768.0,72767.0,0.068729]
[1730242829092,0.03908275,72768.0,72767.0,0.068729]
[1730242829786,1.5008,72770.0,72767.0,0.20075965]
[1730242829987,0.36286167,72785.0,72770.0,0.068726]
[1730242830188,0.068716,72781.0,72780.0,0.068716]
[1730242830387,0.068713,72784.0,72778.0,0.13203065]
[1730242830578,0.20074365,72784.0,72783.0,0.068714]
[1730242830786,0.24049161,72784.0,72783.0,0.068714]
[1730242830985,1.70074365,72784.0,72783.0,0.068714]
[1730242831486,0.068715,72782.0,72780.0,0.068717]
[1730242833384,0.068715,72782.0,72778.0,0.13203065]
[1730242833691,0.068715,72782.0,72781.0,0.068716]
[1730242833988,1.50072,72784.0,72778.0,0.13203065]
[1730242834244,1.568713,72784.0,72782.0,0.068715]
[1730242834985,0.068714,72783.0,72782.0,0.068715]
[1730242836689,1.50076,72784.0,72783.0,0.068714]
[1730242836885,1.5,72784.0,72783.0,0.068714]
[1730242837892,1.53999238,72784.0,72783.0,0.068714]
[1730242839395,1.58560172,72784.0,72783.0,0.068714]
[1730242840091,1.53999238,72784.0,72783.0,0.068714]
[1730242840490,1.58559861,72784.0,72783.0,0.068714]
[1730242844009,1.58559861,72784.0,72776.0,0.3608]
[1730242844299,0.068724,72772.0,72771.0,0.0306]
[1730242844489,0.24074703,72772.0,72771.0,0.0306]
[1730242844690,0.28632965,72772.0,72771.0,0.0306]
[1730242844893,1.78632965,72772.0,72771.0,0.0306]
[1730242845994,1.74074703,72772.0,72771.0,0.0306]
[1730242848698,0.24074703,72772.0,72771.0,0.0306]
[1730242849697,0.10871638,72772.0,72771.0,0.099325]
[1730242850695,0.10876204,72772.0,72771.0,0.099325]
[1730242851299,0.10861572,72772.0,72771.0,0.099325]
[1730242853001,0.15405823,72772.0,72771.0,0.099325]
[1730242853205,0.15405823,72772.0,72765.0,0.00206128]
[1730242853206,0.06873,72766.0,72765.0,0.00206128]
[1730242853413,0.60145237,72766.0,72765.0,0.00206128]
[1730242854100,0.6460618,72766.0,72765.0,0.00206128]
[1730242855407,0.6460618,72766.0,72765.0,0.07079228]
[1730242860117,0.2852618,72766.0,72765.0,0.07079228]
[1730242860419,0.6460618,72766.0,72765.0,0.07079228]
[1730242860718,0.60145237,72766.0,72765.0,0.00206128]
[1730242860907,0.64578586,72766.0,72765.0,0.00206128]
[1730242861107,0.60145237,72766.0,72765.0,0.00206128]
[1730242865417,0.068733,72763.0,72762.0,0.068734]
[1730242865615,0.3608,72774.0,72773.0,0.068723]
[1730242866115,0.3608,72774.0,72763.0,0.0622]
[1730242866116,0.49283065,72775.0,72774.0,0.068723]
[1730242866616,0.53233857,72775.0,72774.0,0.068723]
[1730242866931,0.068724,72773.0,72771.0,0.068725]
[1730242867110,0.3608,72775.0,72770.0,0.068726]
[1730242867305,0.13203065,72772.0,72770.0,0.068726]
[1730242867619,0.068731,72766.0,72763.0,0.068732]
[1730242867810,0.20076265,72764.0,72763.0,0.068732]
[1730242868932,0.13203065,72764.0,72763.0,0.068732]
[1730242869847,0.20076265,72764.0,72763.0,0.068732]
[1730242871944,0.3608,72767.0,72763.0,0.20076265]
[1730242872152,0.20075165,72776.0,72775.0,0.068722]
[1730242872445,0.03945206,72776.0,72775.0,0.068722]
[1730242873038,1.63203065,72780.0,72779.0,0.068718]
[1730242873235,1.53978462,72780.0,72779.0,0.068718]
[1730242874350,1.53973848,72780.0,72779.0,0.068718]
[1730242874956,0.04004858,72780.0,72779.0,0.3608]
[1730242875154,0.3608,72795.0,72794.0,0.068704]
[1730242875351,1.90135115,72795.0,72794.0,0.20073465]
[1730242875534,0.3608,72795.0,72794.0,0.20073465]
[1730242875846,0.00206128,72799.0,72798.0,0.0687]
[1730242876050,0.04305419,72799.0,72798.0,0.0687]
[1730242876364,0.00206128,72799.0,72789.0,0.00104]
[1730242876543,0.00206128,72799.0,72782.0,0.10332]
[1730242876544,0.068706,72792.0,72791.0,0.068706]
[1730242876857,0.17302356,72792.0,72791.0,0.068706]
[1730242877539,0.04099291,72792.0,72791.0,0.068706]
[1730242879646,1.50206128,72799.0,72798.0,0.0687]
[1730242884150,1.5,72799.0,72798.0,0.0687]
[1730242884347,0.068688,72811.0,72798.0,0.76566345]
[1730242884551,0.068688,72811.0,72810.0,0.20071965]
[1730242884748,1.568688,72811.0,72810.0,0.20071965]
[1730242885198,1.568688,72811.0,72810.0,0.068689]
[1730242885350,0.068688,72811.0,72810.0,0.068689]
[1730242886247,0.13203065,72814.0,72813.0,0.068686]
[1730242886448,0.20071565,72814.0,72813.0,0.068686]
[1730242888948,0.13203065,72814.0,72813.0,0.068686]
[1730242889149,1.50072,72816.0,72815.0,0.068684]
[1730242889348,1.5,72816.0,72815.0,0.20071465]
[1730242891663,1.5,72816.0,72815.0,0.068684]
[1730242891855,1.5,72816.0,72815.0,0.20071465]
[1730242897034,1.5,72816.0,72815.0,0.068684]
[1730242900231,1.568683,72816.0,72815.0,0.068684]
[1730242904931,1.61036385,72816.0,72815.0,0.068684]
[1730242905145,1.568683,72816.0,72815.0,0.068684]
[1730242906653,1.568683,72816.0,72800.0,0.068697]
[1730242906654,0.068693,72806.0,72800.0,0.068697]
[1730242906843,0.13203065,72804.0,72803.0,0.068695]
[1730242907142,0.0307,72815.0,72800.0,0.01631184]
[1730242907143,1.50072,72816.0,72815.0,0.068684]
[1730242907340,1.54158111,72816.0,72815.0,0.068684]
[1730242907540,1.5,72816.0,72815.0,0.068684]
[1730242908450,0.068675,72824.0,72823.0,0.068676]
[1730242908754,0.11075604,72824.0,72823.0,0.068676]
[1730242908943,1.61075604,72824.0,72823.0,0.068676]
[1730242912147,0.068679,72821.0,72820.0,0.068679]
[1730242912450,0.60359069,72821.0,72820.0,0.068679]
[1730242912752,0.068685,72814.0,72813.0,0.068685]
[1730242912945,0.11076604,72814.0,72813.0,0.068685]
[1730242913344,0.15866216,72814.0,72813.0,0.068685]
[1730242915053,0.15861217,72814.0,72813.0,0.068685]
[1730242918150,0.15861217,72814.0,72810.0,0.068688]
[1730242918151,0.068688,72811.0,72810.0,0.068688]
[1730242918749,0.15861517,72811.0,72810.0,0.068688]
[1730242921250,0.11073542,72811.0,72810.0,0.068688]
[1730242922746,0.11073542,72811.0,72789.0,0.068708]
[1730242922747,0.068689,72810.0,72789.0,0.068708]
[1730242922950,0.13203065,72800.0,72789.0,0.068708]
[1730242923143,0.068702,72798.0,72797.0,0.0687]
[1730242923454,0.10944578,72798.0,72797.0,0.0687]
[1730242923959,1.60944578,72798.0,72797.0,0.0687]
[1730242924252,0.068705,72796.0,72795.0,0.068702]
[1730242924461,0.20073565,72796.0,72795.0,0.068702]
[1730242924654,0.20073565,72796.0,72792.0,0.36188]
[1730242924845,0.068705,72793.0,72792.0,0.429506]
[1730242925846,0.068711,72787.0,72786.0,0.068711]
[1730242927049,0.068707,72791.0,72790.0,0.068706]
[1730242927247,0.00072,72798.0,72797.0,0.068701]
[1730242927460,0.068698,72801.0,72800.0,0.068698]
[1730242932759,0.068698,72801.0,72799.0,0.0158854]
[1730242932760,0.068698,72801.0,72790.0,0.3608]
[1730242933056,0.20073665,72793.0,72792.0,0.068703]
[1730242933256,0.24117013,72793.0,72792.0,0.068703]
[1730242934260,0.04043348,72793.0,72792.0,0.068703]
[1730242934460,0.3608,72796.0,72794.0,0.068704]
[1730242934461,0.068703,72795.0,72794.0,0.068704]
[1730242934662,0.10896907,72795.0,72794.0,0.068704]
[1730242934858,0.068703,72795.0,72794.0,0.068704]
[1730242935758,0.3608,72796.0,72795.0,0.068703]
[1730242936061,1.50072,72800.0,72795.0,0.429503]
[1730242936062,0.00072,72800.0,72795.0,0.429503]
[1730242936369,0.00072,72800.0,72799.0,0.20072965]
[1730242936662,0.3608,72809.0,72808.0,0.06869]
[1730242937055,0.068687,72812.0,72811.0,0.068688]
[1730242937465,0.429487,72812.0,72811.0,0.068688]
[1730242938961,0.13409141,72816.0,72811.0,0.068688]
[1730242938962,0.00206076,72816.0,72811.0,0.068688]
[1730242939262,0.3608,72834.0,72833.0,0.068667]
[1730242939462,0.068651,72850.0,72836.0,0.068664]
[1730242939463,0.58773065,72848.0,72836.0,0.068664]
[1730242939663,0.58773065,72848.0,72825.0,0.3608]
[1730242939664,0.3608,72837.0,72825.0,0.0302]
[1730242939863,0.068672,72828.0,72826.0,0.068673]
[1730242940161,0.068673,72827.0,72826.0,0.068673]
[1730242941859,0.13203065,72829.0,72820.0,0.0626]
[1730242942166,0.068682,72820.0,72815.0,0.39196]
[1730242942356,0.068682,72820.0,72807.0,0.13943065]
[1730242942357,0.068687,72814.0,72813.0,0.068686]
[1730242942554,0.13203065,72814.0,72808.0,0.04747835]
[1730242942754,0.068688,72811.0,72810.0,0.070748]
[1730242943368,0.11020595,72811.0,72810.0,0.070748]
[1730242946162,0.11020595,72811.0,72810.0,0.00206]
[1730242946163,0.88304595,72811.0,72810.0,0.00206]
[1730242946363,0.068697,72801.0,72789.0,0.10832]
[1730242946568,0.068697,72801.0,72792.0,0.3608]
[1730242946569,0.13203065,72801.0,72792.0,0.3608]
[1730242946863,0.068702,72797.0,72796.0,0.068701]
[1730242947770,0.0096,72818.0,72796.0,0.54415065]
[1730242947975,0.04126767,72809.0,72807.0,0.13203065]
[1730242948279,0.068682,72818.0,72817.0,0.068681]
[1730242948464,0.11043451,72818.0,72817.0,0.068681]
[1730242949667,0.15825305,72818.0,72817.0,0.068681]
[1730242951062,0.15822532,72818.0,72817.0,0.068681]
[1730242951471,0.068682,72818.0,72817.0,0.068681]
[1730242952269,0.068685,72814.0,72813.0,0.068685]
[1730242952673,0.068688,72811.0,72810.0,0.068689]
[1730242952878,0.068689,72810.0,72805.0,0.068693]
[1730242953075,0.068692,72806.0,72805.0,0.068693]
[1730242955169,0.3608,72813.0,72809.0,0.068687]
[1730242955373,0.06868,72821.0,72820.0,0.068678]
[1730242956482,0.068676,72824.0,72818.0,0.13203065]
[1730242956683,0.068676,72824.0,72823.0,0.068676]
[1730242958179,0.068678,72821.0,72820.0,0.068679]
[1730242959687,0.068682,72819.0,72818.0,0.068681]
[1730242959883,0.068682,72818.0,72817.0,0.068682]
[1730242961986,0.429473,72827.0,72814.0,0.068685]
[1730242961987,0.068684,72815.0,72814.0,0.068685]
[1730242963084,0.20071465,72815.0,72814.0,0.068685]
[1730242963885,0.068684,72815.0,72814.0,0.068685]
[1730242964482,0.49283065,72819.0,72818.0,0.068681]
[1730242964483,0.3608,72819.0,72818.0,0.068681]
[1730242965595,0.40373969,72819.0,72818.0,0.068681]
[1730242966094,0.04293969,72819.0,72818.0,0.068681]
[1730242968791,0.04293969,72819.0,72818.0,0.20071165]
[1730242969088,0.00206047,72830.0,72829.0,0.068671]
[1730242969294,0.3608,72847.0,72829.0,0.66982165]
[1730242969504,0.11888411,72846.0,72838.0,0.13203065]
[1730242969697,0.05022911,72845.0,72844.0,0.068656]
[1730242972997,0.3608,72860.0,72844.0,0.3608]
[1730242973196,0.05071755,72859.0,72850.0,0.3608]
[1730242973397,0.00205967,72861.0,72859.0,0.13203065]
[1730242973697,0.00205967,72861.0,72860.0,0.178961]
[1730242974099,0.00205967,72861.0,72860.0,0.209161]
[1730242974391,0.13203065,72870.0,72860.0,0.209161]
[1730242974598,0.068641,72860.0,72859.0,0.00096]
[1730242974801,0.068641,72860.0,72850.0,0.36176]
[1730242975102,0.49283065,72861.0,72850.0,0.3608]
[1730242975103,0.068643,72859.0,72850.0,0.3608]
[1730242975327,0.068643,72859.0,72855.0,0.068645]
[1730242975603,0.068643,72859.0,72856.0,0.068645]
[1730242975787,0.3608,72867.0,72855.0,0.13203065]
[1730242975994,0.3608,72867.0,72866.0,0.068636]
[1730242977099,0.3608,72867.0,72856.0,0.3608]
[1730242977305,0.068642,72860.0,72857.0,0.178964]
[1730242977503,0.13203065,72858.0,72857.0,0.178964]
[1730242978000,0.0333,72859.0,72858.0,0.068643]
[1730242978702,0.13203065,72863.0,72855.0,0.11032]
[1730242978999,0.3608,72867.0,72861.0,0.13203065]
[1730242979198,0.3608,72867.0,72866.0,0.068636]
[1730242979389,0.429435,72867.0,72866.0,0.068636]
[1730242979590,0.6248613,72867.0,72851.0,0.3608]
[1730242979792,0.20067865,72853.0,72851.0,0.429449]
[1730242980103,0.20067865,72853.0,72852.0,0.068649]
[1730242981301,0.13203065,72853.0,72852.0,0.068649]
[1730242981603,0.068645,72857.0,72856.0,0.068644]
[1730242983010,0.1130202,72857.0,72856.0,0.068644]
[1730242983595,0.068643,72859.0,72856.0,0.068644]
[1730242983902,0.068643,72859.0,72858.0,0.068643]
[1730242984101,0.068643,72859.0,72851.0,0.3608]
[1730242984307,0.068658,72842.0,72841.0,0.00205912]
[1730242984603,2.10492577,72842.0,72841.0,0.00205912]
[1730242984812,0.06867,72830.0,72829.0,0.3608]
[1730242985106,0.20070065,72830.0,72829.0,0.3608]
[1730242986503,0.30940884,72830.0,72829.0,0.3608]
[1730242986707,0.60153884,72830.0,72820.0,0.36176]
[1730242986898,0.26663641,72821.0,72820.0,0.3608]
[1730242987199,0.26663641,72821.0,72820.0,0.429479]
[1730242987798,0.19795841,72821.0,72820.0,0.429479]
[1730242988000,0.068676,72823.0,72822.0,0.068676]
[1730242988198,0.11080413,72823.0,72822.0,0.068676]
[1730242988598,0.068676,72823.0,72822.0,0.068676]
[1730242989305,0.068678,72821.0,72820.0,0.3608]
[1730242989506,0.26663641,72821.0,72820.0,0.3608]
[1730242996807,0.26663641,72821.0,72820.0,0.429479]
[1730242997310,0.068676,72824.0,72823.0,0.068675]
[1730242999406,0.068678,72821.0,72820.0,0.429479]
[1730243006407,0.20064769,72821.0,72820.0,0.429479]
[1730243008232,0.20064769,72821.0,72820.0,0.068679]
[1730243008540,0.20064769,72821.0,72816.0,0.01646689]
[1730243008541,0.068682,72818.0,72817.0,0.06868]
[1730243008735,0.068682,72818.0,72805.0,0.068693]
[1730243008736,0.26393938,72818.0,72806.0,0.00096]
[1730243008940,0.3608,72819.0,72798.0,0.3608]
[1730243008941,0.068699,72799.0,72798.0,0.3608]
[1730243009135,0.20066869,72799.0,72798.0,0.3608]
[1730243009334,1.70066869,72799.0,72798.0,0.3608]
[1730243011829,1.63196969,72799.0,72796.0,0.068702]
[1730243012024,0.068701,72797.0,72796.0,0.068702]
[1730243013653,0.068704,72794.0,72793.0,0.3608]
[1730243013942,0.20067369,72794.0,72793.0,0.3608]
[1730243014934,0.20067369,72794.0,72789.0,0.068708]
[1730243015155,0.068711,72786.0,72785.0,0.36176]
[1730243015332,0.33265038,72786.0,72785.0,0.3608]
[1730243016035,0.068706,72792.0,72785.0,0.3608]
[1730243016239,0.068709,72789.0,72788.0,0.068709]
[1730243016436,0.13196969,72789.0,72788.0,0.068709]
[1730243016920,0.20067769,72789.0,72788.0,0.068709]
[1730243017627,0.068711,72786.0,72785.0,0.3608]
[1730243019329,0.068711,72786.0,72785.0,0.429512]
[1730243019515,0.20067769,72789.0,72788.0,0.068709]
[1730243020327,0.13196969,72794.0,72793.0,0.068705]
[1730243020720,0.20067369,72794.0,72793.0,0.068705]
[1730243024723,0.3608,72799.0,72798.0,0.0687]
[1730243024724,0.56146869,72799.0,72798.0,0.0687]
[1730243024924,0.56146869,72799.0,72789.0,0.19616969]
[1730243024925,0.20066869,72799.0,72789.0,0.0642]
[1730243025127,0.20067269,72795.0,72794.0,0.068704]
[1730243025424,0.068706,72792.0,72791.0,0.068706]
[1730243025625,0.20067569,72792.0,72791.0,0.068706]
[1730243025831,0.068707,72790.0,72789.0,0.0642]
[1730243026026,0.068707,72790.0,72789.0,0.132908]
[1730243026533,0.13196969,72792.0,72789.0,0.0642]
[1730243026732,0.13196969,72792.0,72791.0,0.068706]
[1730243026932,0.068705,72793.0,72792.0,0.068706]
[1730243027133,0.3608,72795.0,72794.0,0.068704]
[1730243027629,0.429503,72795.0,72794.0,0.068704]
[1730243028131,0.3608,72795.0,72789.0,0.0642]
[1730243028334,0.068706,72792.0,72791.0,0.068706]
[1730243028533,0.20067569,72792.0,72791.0,0.068706]
[1730243033033,0.20067569,72792.0,72786.0,0.0322]
[1730243033034,0.13196969,72792.0,72786.0,0.0322]
[1730243033230,0.20067969,72787.0,72786.0,0.100911]
[1730243033434,0.20067969,72787.0,72786.0,0.068711]
[1730243037536,0.20067969,72787.0,72782.0,0.099615]
[1730243037537,0.068714,72783.0,72782.0,0.099615]
[1730243037838,0.24037892,72783.0,72782.0,0.11579912]
[1730243038926,0.24028163,72783.0,72782.0,0.11579912]
[1730243040440,0.24028163,72783.0,72782.0,0.08489912]
[1730243040929,0.20068369,72783.0,72782.0,0.08489912]
[1730243041935,0.068721,72776.0,72775.0,0.10002]
[1730243042133,0.20069069,72776.0,72775.0,0.10002]
[1730243043138,0.20069069,72776.0,72775.0,0.06872]
[1730243043837,0.20069069,72776.0,72774.0,0.01624871]
[1730243044027,0.068724,72772.0,72771.0,0.429525]
[1730243044235,0.20069369,72772.0,72771.0,0.429525]
[1730243044632,0.20069369,72772.0,72771.0,0.3608]
[1730243045232,1.70069369,72772.0,72771.0,0.3608]
[1730243045640,1.70069369,72772.0,72764.0,0.068731]
[1730243045641,0.068731,72765.0,72764.0,0.3608]
[1730243045834,0.20070069,72765.0,72764.0,0.3608]
[1730243046142,0.20070069,72765.0,72758.0,0.068738]
[1730243046446,0.13196969,72759.0,72758.0,0.068738]
[1730243046736,0.068738,72758.0,72757.0,0.3608]
[1730243046942,0.068741,72754.0,72753.0,0.01640473]
[1730243047141,0.13196969,72754.0,72747.0,0.3608]
[1730243047330,0.20071469,72750.0,72747.0,0.3608]
[1730243047845,0.068747,72748.0,72737.0,0.01622871]
[1730243048038,0.13196969,72738.0,72736.0,0.068758]
[1730243048238,0.13196969,72738.0,72729.0,0.0325]
[1730243048439,0.20072969,72734.0,72733.0,0.42956]
[1730243049539,0.20072969,72734.0,72733.0,0.44550128]
[1730243050836,0.20072969,72734.0,72733.0,0.42956]
[1730243058744,0.20072969,72734.0,72733.0,0.06876]
[1730243059940,0.068762,72732.0,72729.0,0.01621064]
[1730243060141,0.068767,72727.0,72726.0,0.3608]
[1730243060743,0.068767,72727.0,72721.0,0.0020625]
[1730243060949,0.068772,72722.0,72721.0,0.0020625]
[1730243061450,1.568772,72722.0,72721.0,0.0020625]
[1730243062342,1.568772,72722.0,72675.0,0.04053738]
[1730243062343,0.068781,72712.0,72707.0,0.0317]
[1730243062640,0.068784,72709.0,72708.0,0.08498625]
[1730243063146,0.20075369,72709.0,72708.0,0.068785]
[1730243064342,0.068788,72705.0,72704.0,0.429588]
[1730243064542,0.20075769,72705.0,72704.0,0.3608]